Cogmind - Beta 14 @@@ ROGUE MODE // 2025.03.12 @ 21:50:27 Player: Bbenedict8 Result: Self-destructed Performance ------------- Evolutions (3) 1500 Regions Visited (8) 1600 Robots Destroyed (93) 465 Value Destroyed (1953) 1953 Prototype IDs (26) 520 Alien Tech Used (0) 0 Bonus (300) 300 TOTAL SCORE: 6338 Bonus ------- Aligned with FarCom 300 Cogmind --------- Core Integrity 478/700 Matter 0/300 Energy 100/100 System Corruption 18% Temperature Cool (0) Movement Core (50) Location -7/Factory Parts ------- > --- POWER (2) -------- (None) > --- PROPULSION (3) --- (None) > --- UTILITY (5) ------ (None) > --- WEAPON (3) ------- (None) > --- INVENTORY (5) ---- Deuterium Engine Cloak of Protection Heavy Armor Plating Assault Cannon Peak State ------------ > --- POWER ------------ Light Ion Engine Deuterium Engine > --- PROPULSION ------- Wheel Wheel Wheel > --- UTILITY ---------- Improved Heat Sink Huge Storage Unit Advanced Visual Processing Unit Improved Signal Interpreter Layered Light Armor Plating > --- WEAPON ----------- Particle Gun Flak Cannon Gauss Cannon > --- INVENTORY -------- Light Deuterium Engine High-capacity Battery Improved Sensor Array Experimental Sensor Array Improved Signal Interpreter Energy Filter Cloak of Protection Heavy Armor Plating Improved Light Armor Plating Particle Cannon Particle Cannon Heavy Assault Rifle Heavy Assault Rifle Gauss Rifle Assault Cannon Assault Cannon Flak Cannon Rocket Launcher Maul [Rating: 36] Favorites ----------- Power Deuterium Engine Engine Deuterium Engine Power Core Light Nuclear Core Propulsion Wheel Treads Light Treads Wheel Wheel Utility Small Storage Unit Device Improved Heat Sink Storage Small Storage Unit Processor Signal Interpreter Hackware Hacking Suite Protection Layered Light Armor Plating Weapon Flak Cannon Energy Gun Particle Gun Energy Cannon Particle Cannon Ballistic Gun Improved Assault Rifle Ballistic Cannon Flak Cannon Launcher Rocket Launcher Impact Weapon Maul Build | -11 -10 -10 -10 -9 -8 -7 -7 -7 ------- Run | Yrd Mat Min Exi Min Mat Fac Was Fac Slots Evolved 6 | . . . . . 4 2 . . Power 1 | . . . . . 1 . . . Propulsion 1 | . . . . . 1 . . . Utility 3 | . . . . . 2 1 . . Weapon 1 | . . . . . . 1 . . Parts Attached 67 | 6 7 5 . 1 38 9 1 . Power 8 | 1 1 . . . 5 1 . . Engine 7 | 1 1 . . . 4 1 . . Core 1 | . . . . . 1 . . . Reactor . | . . . . . . . . . Propulsion 15 | 2 2 2 . 1 8 . . . Treads 3 | 2 . . . . 1 . . . Leg . | . . . . . . . . . Wheel 12 | . 2 2 . 1 7 . . . Hover . | . . . . . . . . . Flight . | . . . . . . . . . Utility 19 | 1 1 . . . 14 3 . . Device 6 | . . . . . 5 1 . . Storage 4 | 1 . . . . 2 1 . . Processor 3 | . 1 . . . 1 1 . . Hackware 1 | . . . . . 1 . . . Protection 5 | . . . . . 5 . . . Artifact . | . . . . . . . . . Weapon 25 | 2 3 3 . . 11 5 1 . Energy Gun 3 | 1 . 1 . . 1 . . . Energy Cannon 3 | . . . . . 1 2 . . Ballistic Gun 8 | 1 . 1 . . 6 . . . Ballistic Cannon 4 | . 1 . . . 1 2 . . Launcher 6 | . 2 1 . . 2 . 1 . Special Weapon . | . . . . . . . . . Impact Weapon 1 | . . . . . . 1 . . Slashing Weapon . | . . . . . . . . . Piercing Weapon . | . . . . . . . . . Special Melee Weapon . | . . . . . . . . . Unidentified Prototypes 2 | . . . . . 2 . . . Parts Lost 25 | . 5 6 . . 10 4 . . Power 5 | . 1 . . . 3 1 . . Propulsion 10 | . 1 3 . . 4 2 . . Utility 2 | . . . . . 2 . . . Weapon 8 | . 3 3 . . 1 1 . . Highest Loss Streak 3 | . 3 3 . . 3 3 . . To Critical Strikes . | . . . . . . . . . Average Slot Usage (%) 90 | . 95 90 85 86 91 82 40 . Engine 15 | . 13 14 14 14 16 10 3 . Treads 3 | . 16 . . . . . . . Wheel 16 | . 10 20 14 15 20 13 3 . Device 1 | . . . . . 2 6 3 . Storage 10 | . 14 14 14 14 9 7 3 . Processor 11 | . 12 14 14 14 9 15 8 . Hackware 4 | . . . . . 8 . . . Protection 3 | . . . . . 6 7 3 . Energy Gun 4 | . 3 . . . 5 3 . . Ballistic Gun 6 | . 5 3 14 14 5 . . . Ballistic Cannon 6 | . 10 9 . . 5 14 6 . Launcher 4 | . 5 12 14 14 1 . 1 . Peak Build Rating 36 | 6 9 9 9 10 31 36 33 2 Average Rating 18 | 4 7 8 8 9 25 33 17 2 On Entrance 11 | . 6 9 8 9 10 27 33 2 Naked Turns 69 | . . . . . . . 60 9 Heaviest Build 113 | 14 17 17 15 15 105 113 106 . Greatest Support 40 | 40 40 20 10 26 36 30 10 3 Greatest Overweight (x) 10 | . 1 4 1 1 5 10 10 . Average Overweight (x) 1 | . . . 1 . 2 6 1 . Largest Inventory Capacity 25 | 8 8 8 8 8 25 25 25 5 Average Capacity 14 | 6 8 8 8 8 18 25 15 5 Most Carried 23 | 2 8 8 6 8 23 22 21 5 Average Carried 10 | . 6 6 5 7 13 20 13 5 Final Capacity 25 | 8 8 8 8 8 25 25 5 5 Final Carried 23 | 1 8 5 6 8 23 21 5 5 Class Distribution -------------------- 55% | Mutant 40% | Scavenger-Mutant Dominant Class ---------------- Mutant | -10/Materials Mutant | -10/Mines Mutant | -10/Exiles Mutant | -9/Mines Scavenger-Mutant | -8/Materials Mutant | -7/Factory Mutant | -7/Waste Mutant | -7/Factory Resources | -11 -10 -10 -10 -9 -8 -7 -7 -7 ----------- Run | Yrd Mat Min Exi Min Mat Fac Was Fac Matter Collected 2141 | 199 455 341 . 65 1068 13 . . Remotely . | . . . . . . . . . Salvage Created 2307 | 134 489 298 . . 1349 37 . . Parts 165 | 4 44 25 . . 90 2 . . Haulers Intercepted 4 | . 1 . . . 3 . . . Recyclers Shooed 2 | . . . . . 2 . . . Parts Field Recycled . | . . . . . . . . . Retrieved Matter . | . . . . . . . . . Parts Self-Destructed . | . . . . . . . . . Prevented . | . . . . . . . . . Kills | -11 -10 -10 -10 -9 -8 -7 -7 -7 ------- Run | Yrd Mat Min Exi Min Mat Fac Was Fac Combat Hostiles Destroyed 57 | . 17 10 . . 27 3 . . Guns 21 | . 3 . . . 18 . . . Cannons 22 | . 10 3 . . 6 3 . . AOE 14 | . 4 7 . . 3 . . . Classes Destroyed 13 | 2 7 1 . . 3 . . . Worker 13 | 2 1 3 . . 7 . . . Builder 4 | . . 1 . . 3 . . . Tunneler 4 | . 1 1 . . 2 . . . Hauler 4 | . 1 . . . 3 . . . Recycler 3 | 1 . 1 . . 1 . . . Mechanic 1 | . . . . . 1 . . . Operator 2 | . 1 . . . 1 . . . Watcher 5 | . 3 . . . 2 . . . Swarmer 27 | . 9 6 . . 12 . . . Grunt 19 | . 5 4 . . 8 2 . . Sentry 6 | . . . . . 6 . . . Hunter 2 | . . . . . 1 1 . . Subdweller 3 | . 3 . . . . . . . Best Kill Streak 7 | 3 3 6 . . 7 2 . . Combat Bots Only 5 | . 3 3 . . 5 2 . . Max Kills in Single Turn 3 | 1 2 2 . . 3 1 . . Gunslinging 1 | . . . . . 1 . . . Exploded 2 | . 2 2 . . 2 . . . Melee . | . . . . . . . . . Uniques/NPCs Destroyed . | . . . . . . . . . Combat | -11 -10 -10 -10 -9 -8 -7 -7 -7 -------- Run | Yrd Mat Min Exi Min Mat Fac Was Fac Hostile Shots Fired 290 | . 93 37 . . 112 46 2 . Missed 73 | . 24 10 . . 29 10 . . Damage Taken 3244 | . 807 446 . . 1419 480 92 . Core 680 | . 101 87 . . 270 130 92 . Absorbed by Shields . | . . . . . . . . . Core Remaining (%) 58 | 100 . . . 24 50 . . . Volleys Fired 264 | 4 93 32 . . 115 19 1 . Largest 3 | 2 2 2 . . 2 3 2 . Hottest 201 | 60 68 75 . . 109 201 77 . Shots Fired 438 | 8 136 39 . . 214 39 2 . Gun 232 | 8 50 6 . . 167 1 . . Cannon 181 | . 77 23 . . 42 38 1 . Launcher 25 | . 9 10 . . 5 . 1 . Special . | . . . . . . . . . Kinetic 340 | 4 112 28 . . 159 36 1 . Thermal 53 | . . . . . 50 3 . . Explosive 25 | . 9 10 . . 5 . 1 . Electromagnetic 20 | 4 15 1 . . . . . . Robot Hit Streak 16 | 2 7 7 . . 16 5 2 . Robot Miss Streak 9 | 1 4 6 . . 9 7 2 . Penetration Max 1 | . . . . . 1 . . . Secondary Targets 2 | . 1 . . . 1 . . . Max Gunslinging Chain 1 | . 1 . . . 1 . . . Shots Hit Robots 259 | 4 71 17 . . 146 19 2 . Core Hits 157 | 3 27 17 . . 92 15 3 . Critical Kills 1 | 1 . . . . . . . . Critical Parts Destroyed 1 | . 1 . . . . . . . Critical Strikes 8 | 1 2 4 . . 1 . . . Burn 1 | . . . . . 1 . . . Destroy 2 | 1 1 . . . . . . . Blast 5 | . 1 4 . . . . . . Melee Attacks . | . . . . . . . . . Impact . | . . . . . . . . . Slashing . | . . . . . . . . . Piercing . | . . . . . . . . . Sneak Attacks . | . . . . . . . . . Combat Hostiles . | . . . . . . . . . Follow-up Attacks . | . . . . . . . . . Damage Inflicted 5814 | 54 1487 852 . . 2857 374 190 . Guns 2091 | 54 319 20 . . 1698 . . . Cannons 2102 | . 795 271 . . 630 374 32 . Explosions 1621 | . 373 561 . . 529 . 158 . Melee . | . . . . . . . . . Ramming . | . . . . . . . . . Kinetic 3586 | 11 996 278 . . 1895 374 32 . Thermal 490 | . . 57 . . 433 . . . Explosive 1564 | . 373 504 . . 529 . 158 . Electromagnetic 174 | 43 118 13 . . . . . . Impact . | . . . . . . . . . Slashing . | . . . . . . . . . Piercing . | . . . . . . . . . Highest Corruption 18 | . . . . . 1 . 18 18 Average Corruption 8 | . . . . . 1 . 8 18 Corruption Purged . | . . . . . . . . . Corruption Blocked . | . . . . . . . . . Effects 3 | . . . . . . . 3 . Heat Flow Errors 1 | . . . . . . . 1 . Parts Rejected 1 | . . . . . . . 1 . Data Loss (major) 1 | . . . . . . . 1 . Overload Shots . | . . . . . . . . . Overflow Damage 144 | . 33 43 . . 68 . . . Projectiles 15 | . 15 . . . . . . . Explosions 129 | . 18 43 . . 68 . . . Melee . | . . . . . . . . . Knockbacks 32 | . 15 3 . . 12 2 . . Impact . | . . . . . . . . . Kinetic 31 | . 14 3 . . 12 2 . . Secondary 1 | . 1 . . . . . . . Self-Inflicted Damage 426 | . 25 141 . . 260 . . . Shots 13 | . 3 5 . . 5 . . . Rammed . | . . . . . . . . . Targets Rammed . | . . . . . . . . . Kicked . | . . . . . . . . . Crushed . | . . . . . . . . . Highest Temperature 469 | . 24 57 . . 469 105 94 . Average Temperature 61 | . 7 24 . . 81 24 60 . Received Heat Transfer 876 | . 237 132 . . 333 174 . . Effects 3 | . . . . . 3 . . . Shutdowns 3 | . . . . . 3 . . . Siege Activations . | . . . . . . . . . Robots Corrupted . | . . . . . . . . . Combat Hostiles . | . . . . . . . . . Parts Fried . | . . . . . . . . . Impact Corruptions . | . . . . . . . . . Robots Melted . | . . . . . . . . . Combat Hostiles . | . . . . . . . . . Parts Melted 2 | . . . . . 2 . . . Heat Transferred 1062 | . . . . . 1062 . . . Parts Sabotaged . | . . . . . . . . . Parts Stolen . | . . . . . . . . . Parts Stripped . | . . . . . . . . . Power Chain Reactions 1 | . . 1 . . . . . . Alert | -11 -10 -10 -10 -9 -8 -7 -7 -7 ------- Run | Yrd Mat Min Exi Min Mat Fac Was Fac Peak Influence 399 | 15 215 399 . 10 358 180 30 21 Initial 132 | . 9 83 . . 3 132 5 21 Average 147 | 2 93 174 . 2 189 141 15 21 Maximum Alert Level 1 | . 1 1 . . 1 . . . Low Security (%) 68 | 100 92 62 . 100 51 100 100 100 Level 1 31 | . 7 37 . . 48 . . . Level 2 . | . . . . . . . . . Level 3 . | . . . . . . . . . Level 4 . | . . . . . . . . . Level 5 . | . . . . . . . . . High Security . | . . . . . . . . . Max Security . | . . . . . . . . . Squads Dispatched 10 | . 3 . . . 6 1 . . Investigation 4 | . 1 . . . 3 . . . Extermination . | . . . . . . . . . Reinforcement 5 | . 2 . . . 2 1 . . Assault . | . . . . . . . . . Garrison 1 | . . . . . 1 . . . Intercept . | . . . . . . . . . Searches Triggered . | . . . . . . . . . Construction Impeded 2 | . . . . . 1 1 . . Haulers Reinforced . | . . . . . . . . . Active Scanning Responses . | . . . . . . . . . Cargo Convoy Interrupts . | . . . . . . . . . Stealth | -11 -10 -10 -10 -9 -8 -7 -7 -7 --------- Run | Yrd Mat Min Exi Min Mat Fac Was Fac Distress Signals 4 | . 2 . . . 2 . . . Communications Jammed . | . . . . . . . . . Distress Signals . | . . . . . . . . . Times Spotted 88 | . 27 10 . . 43 4 4 . Peak Tracking Total 5 | . 5 3 . . 4 2 4 . Tactical Retreats 7 | . 4 . . . 3 . . . Traps | -11 -10 -10 -10 -9 -8 -7 -7 -7 ------- Run | Yrd Mat Min Exi Min Mat Fac Was Fac Traps Triggered 4 | . 1 . . . 2 1 . . Indirectly . | . . . . . . . . . Trap Hack Attempts . | . . . . . . . . . Triggered . | . . . . . . . . . Disarmed . | . . . . . . . . . Reprogrammed . | . . . . . . . . . Reused 2 | . . . . . 2 . . . Traps Extracted . | . . . . . . . . . Installed 2 | . . . . . 2 . . . Triggered 3 | . . . . 1 2 . . . Most Traps Carried 2 | . . . . 2 2 . . . Machines | -11 -10 -10 -10 -9 -8 -7 -7 -7 ---------- Run | Yrd Mat Min Exi Min Mat Fac Was Fac Machines Disabled 13 | . 5 2 . . 5 1 . . Max in Single Turn 2 | . 2 1 . . 2 1 . . Garrison Access 1 | . . . . . 1 . . . Machines Repaired . | . . . . . . . . . Machines Dismantled . | . . . . . . . . . Machines Sabotaged . | . . . . . . . . . Overloaded Fab Kills . | . . . . . . . . . Hacking | -11 -10 -10 -10 -9 -8 -7 -7 -7 --------- Run | Yrd Mat Min Exi Min Mat Fac Was Fac Machines Accessed 19 | . 7 . 1 . 10 1 . . Terminals 16 | . 7 . . . 8 1 . . Fabricators . | . . . . . . . . . Repair Stations . | . . . . . . . . . Recycling Units . | . . . . . . . . . Scanalyzers 1 | . . . . . 1 . . . Garrison Access 1 | . . . . . 1 . . . Total Hacks 48 | . 19 . 1 . 27 1 . . Successful 22 | . 9 . 1 . 12 . . . Failed 26 | . 10 . . . 15 1 . . Catastrophic 5 | . 2 . . . 3 . . . Database Lockouts . | . . . . . . . . . Manual 10 | . . . 1 . 8 1 . . Terminals 44 | . 19 . . . 24 1 . . Fabricators . | . . . . . . . . . Repair Stations . | . . . . . . . . . Recycling Units . | . . . . . . . . . Scanalyzers 2 | . . . . . 2 . . . Garrison Access 1 | . . . . . 1 . . . Terminal Hacks 19 | . 9 . 1 . 9 . . . Record 7 | . 1 . . . 6 . . . Robot Analysis 2 | . 2 . . . . . . . Emergency Access Points 1 | . 1 . . . . . . . Unreport Threat 3 | . . . . . 3 . . . Locate Traps 1 | . 1 . . . . . . . Dispatch Records 1 | . 1 . . . . . . . Maintenance Status 1 | . 1 . . . . . . . Reinforcement Status 1 | . 1 . . . . . . . Zone Layout 1 | . 1 . . . . . . . Derelict Proto ID Bank 1 | . . . 1 . . . . . Fabricator Hacks . | . . . . . . . . . Repair Station Hacks . | . . . . . . . . . Recycling Unit Hacks . | . . . . . . . . . Scanalyzer 2 | . . . . . 2 . . . Insert Component 1 | . . . . . 1 . . . Analyze 1 | . . . . . 1 . . . Garrison Access Hacks 1 | . . . . . 1 . . . Seal Access 1 | . . . . . 1 . . . Unauthorized Hacks . | . . . . . . . . . Terminals . | . . . . . . . . . Fabricators . | . . . . . . . . . Repair Stations . | . . . . . . . . . Recycling Units . | . . . . . . . . . Scanalyzers . | . . . . . . . . . Garrison Access . | . . . . . . . . . Data Cores Recovered . | . . . . . . . . . Used . | . . . . . . . . . Hacking Detections 14 | . 7 . . . 7 . . . Full Trace Events 3 | . 1 . . . 2 . . . Feedback Events 2 | . . . . . 2 . . . Corruption 1 | . . . . . 1 . . . Hackware Fried 1 | . . . . . 1 . . . Feedback Blocked . | . . . . . . . . . Robot Schematics Acquired . | . . . . . . . . . Robots Built . | . . . . . . . . . Authchips . | . . . . . . . . . Time . | . . . . . . . . . Total Robot Build Rating . | . . . . . . . . . Part Schematics Acquired 1 | . . . . . 1 . . . Parts Built . | . . . . . . . . . Authchips . | . . . . . . . . . Time . | . . . . . . . . . Total Part Build Rating . | . . . . . . . . . Parts Repaired . | . . . . . . . . . Time . | . . . . . . . . . Parts Recycled . | . . . . . . . . . Recycled Matter . | . . . . . . . . . Retrieved Matter . | . . . . . . . . . Retrieved Components . | . . . . . . . . . Parts Scanalyzed 1 | . . . . . 1 . . . Part Schematics Acquired 1 | . . . . . 1 . . . Parts Damaged . | . . . . . . . . . Bothacking | -11 -10 -10 -10 -9 -8 -7 -7 -7 ------------ Run | Yrd Mat Min Exi Min Mat Fac Was Fac Used RIF Installer . | . . . . . . . . . Robots Hacked . | . . . . . . . . . Non-combat . | . . . . . . . . . Combat . | . . . . . . . . . Robot Hacks Applied . | . . . . . . . . . Relay Couplers Released . | . . . . . . . . . Fabnet Peak Effective % . | . . . . . . . . . Robots Rewired . | . . . . . . . . . Allies Hacked . | . . . . . . . . . Hacks Repelled . | . . . . . . . . . Allies | -11 -10 -10 -10 -9 -8 -7 -7 -7 -------- Run | Yrd Mat Min Exi Min Mat Fac Was Fac Total Allies . | . . . . . . . . . Largest Group . | . . . . . . . . . Highest-Rated Group . | . . . . . . . . . Highest-Rated Ally . | . . . . . . . . . Total Orders . | . . . . . . . . . Ally Attacks . | . . . . . . . . . Total Damage . | . . . . . . . . . Kills . | . . . . . . . . . Allies Corrupted . | . . . . . . . . . Allies Melted . | . . . . . . . . . Intel | -11 -10 -10 -10 -9 -8 -7 -7 -7 ------- Run | Yrd Mat Min Exi Min Mat Fac Was Fac Robot Analysis Total 2 | . 2 . . . . . . . Derelict Logs Recovered 3 | . . 3 . . . . . . Drone Launches . | . . . . . . . . . Drone Recoveries . | . . . . . . . . . Exploration | -11 -10 -10 -10 -9 -8 -7 -7 -7 ------------- Run | Yrd Mat Min Exi Min Mat Fac Was Fac Turns Passed 6840 | 126 1521 492 457 247 3432 431 125 9 Spaces Moved 4136 | 69 1032 421 477 183 1618 172 148 16 Core 181 | 5 . 38 . . . . 122 16 Treads 527 | 64 463 . . . . . . . Legs . | . . . . . . . . . Wheels 3428 | . 569 383 477 183 1618 172 26 . Hover . | . . . . . . . . . Flight . | . . . . . . . . . Fastest Speed 50 | 50 80 80 95 90 86 125 50 50 Average Speed 115 | 152 115 96 95 94 122 182 81 50 Slowest Speed 250 | 160 160 250 95 95 155 230 230 50 Overloaded Moves . | . . . . . . . . . Propulsion Burnouts . | . . . . . . . . . Robots Hopped . | . . . . . . . . . Cave-ins Triggered . | . . . . . . . . . Exploration Rate (%) 52 | 5 98 68 90 42 84 5 81 1 Regions Visited 8 Branch Regions 3 Pre-discovered Areas 2 | . . 1 . 1 . . . . Known Exits Taken 5 | . 1 1 1 1 1 . . . Unknown Exits Taken 1 | 1 . . . . . . . . Scrap Searched 3 | . . 1 . 2 . . . . Spaces Dug 20 | . 19 . . . . 1 . . Terrain Destroyed 285 | . 58 98 . . 117 2 10 . Melee . | . . . . . . . . . Projectile 5 | . . . . . 3 2 . . AOE 279 | . 58 98 . . 113 . 10 . Terrain Rammed . | . . . . . . . . . Walls Destroyed . | . . . . . . . . . Machines Disabled . | . . . . . . . . . Actions | -11 -10 -10 -10 -9 -8 -7 -7 -7 --------- Run | Yrd Mat Min Exi Min Mat Fac Was Fac Total 5772 | 80 1219 467 480 256 2855 250 149 16 Wait 1228 | . 75 5 . 70 1030 48 . . Move 4129 | 68 1031 420 476 182 1617 172 147 16 Hop . | . . . . . . . . . Pick Up 48 | 2 11 3 1 3 27 1 . . Fast Attach 24 | 5 3 1 . . 14 1 . . Attach 24 | 1 4 4 . 1 10 4 . . Detach 7 | . 1 . . . 5 1 . . Swap 19 | . . . . . 14 4 1 . Drop 19 | . 1 2 . . 16 . . . Fire 264 | 4 93 32 . . 115 19 1 . Melee . | . . . . . . . . . Ram . | . . . . . . . . . Kick . | . . . . . . . . . Crush . | . . . . . . . . . Escape Stasis 5 | . . . . . 5 . . . Rewire 3 | . . . 3 . . . . . Trap 2 | . . . . . 2 . . . Miscellaneous . | . . . . . . . . . Route ------- -11/Scrapyard -10/Materials (discovered 4 exits: *Mat x3 / *Min) -10/Mines (discovered 3 exits: *Mat x2 / *Exi) -10/Exiles (discovered 2 exits: *Min x2) -9/Mines -8/Materials (discovered 3 exits: *Fac x3) -7/Factory -7/Waste -7/Factory History --------- Turn | Location | Event 18 | -11/Scrapyard | Discovered new exit (range 13) 127 | -11/Scrapyard | Entered Materials 315 | -10/Materials | Build established: Mutant 369 | -10/Materials | Discovered new exit (range 5) 727 | -10/Materials | Derelicts attacked the area 995 | -10/Materials | Discovered new exit (range 16) 1019 | -10/Materials | Lost 3 parts (1p1n1w) 1284 | -10/Materials | Discovered new exit (range 16) 1297 | -10/Materials | Identified exit to Materials 1641 | -10/Materials | Discovered new exit (range 8) 1646 | -10/Materials | Identified exit to Mines 1648 | -10/Materials | Entered Mines 1663 | -10/Mines | Met a Derelict bent on vengeance 1686 | -10/Mines | Received a Rocket Launcher from a helpful Derelict 1700 | -10/Mines | Discovered exit to Materials (range 6) 1748 | -10/Mines | Learned location of Storage (-7) 1758 | -10/Mines | Learned 2 Materials zone layouts 1765 | -10/Mines | Found a damaged Exp. Sensor Array with a note attached 1769 | -10/Mines | Found Prototype Device 1772 | -10/Mines | Discovered exit to Materials (range 7) 1830 | -10/Mines | Core integrity fell below 50% 1884 | -10/Mines | Lost 3 parts (1n2w) 2124 | -10/Mines | Deemed a non-threat by the Exiles lab entrance 2124 | -10/Mines | Discovered new exit (range 5) 2134 | -10/Mines | Identified exit to Exiles 2140 | -10/Mines | Entered Exiles 2155 | -10/Exiles | Discovered new exit (range 15) 2167 | -10/Exiles | Identified exit to Mines 2193 | -10/Exiles | Met 8R-AWN 2206 | -10/Exiles | Met EX-HEX 2290 | -10/Exiles | Met EX-DEC 2330 | -10/Exiles | Visited The Gauntlet 2435 | -10/Exiles | Met EX-BIN 2449 | -10/Exiles | Aligned with FarCom system 2450 | -10/Exiles | Given EX-Vault access code 2502 | -10/Exiles | Opened EX-Vault 2506 | -10/Exiles | Found Cloak of Protection 2525 | -10/Exiles | Warned to stay clear of 0b10 Research branches 2542 | -10/Exiles | Exiles lab attacked by MAIN.C 2587 | -10/Exiles | Discovered exit to Mines (range 11) 2597 | -10/Exiles | Left Exiles lab with Cloak of Protection 2597 | -10/Exiles | Entered Mines 2823 | -9/Mines | Found a hidden stash of uninstalled traps 2840 | -9/Mines | Discovered new exit (range 4) 2843 | -9/Mines | Identified exit to Materials 2844 | -9/Mines | Entered Materials 2844 | -8/Materials | Evolved 4 slots: Power x1, Propulsion x1, Utility x2 2844 | -8/Materials | Identified Exp. Sensor Array 2845 | -8/Materials | Identified exit to Factory 3533 | -8/Materials | Discovered exit to Factory (range 4) 3779 | -8/Materials | Build established: Scavenger-Mutant 4115 | -8/Materials | Garrison activated, responded to threat 4174 | -8/Materials | Lost 3 parts (1p1u1w) 6262 | -8/Materials | Hacking Suite fried by hacking feedback 6276 | -8/Materials | Entered Factory 6276 | -7/Factory | Evolved 2 slots: Utility x1, Weapon x1 6485 | -7/Factory | Lost 3 parts (1p2n) 6707 | -7/Factory | Sucked down chute 6707 | -7/Factory | Entered Waste 6722 | -7/Waste | EMP discharged 6742 | -7/Waste | Spotted C-40 Crusher 6747 | -7/Waste | Spotted C-40 Crusher 6759 | -7/Waste | Spotted C-40 Crusher 6772 | -7/Waste | Released all parts (9) 6791 | -7/Waste | Spotted C-40 Crusher 6803 | -7/Waste | Spotted C-40 Crusher 6806 | -7/Waste | Spotted C-40 Crusher 6812 | -7/Waste | Build established: Mutant 6822 | -7/Waste | EMP discharged 6822 | -7/Waste | System corruption reached 10% 6827 | -7/Waste | Discovered new exit (range 11) 6832 | -7/Waste | Entered Factory 6841 | -7/Factory | Self-destructed Last Messages --------------- 06772_ Huge Storage Unit crushed. 06773_ Imp. Heat Sink crushed. 06774_ Wheel crushed. 06774_ Maul crushed. 06776_ Lgt. Deuterium Engine crushed. 06776_ Exp. Sensor Array crushed. 06777_ Hcp. Battery crushed. 06777_ Weight Redist. System crushed. 06779_ Flak Cannon crushed. 06781_ Energy Filter crushed. 06781_ Assault Cannon crushed. 06784_ Gauss Rifle crushed. 06785_ Particle Cannon crushed. 06812_ ALERT: Foreign system detected. Charging EMP. 06822_ System corrupted (+10). 06825_ System corrupted: Heat flow error (+128). 06827_ EXIT=FOUND LOCATION=UNKNOWN GOAL=ESCAPE 06832_ Receiving FarCom transmissions... Map ----- +----------------------------------------------------+ | ?????????????????????????????????????????????????? | | ?????????????????????????????????????????????????? | | ?????????????????????????????????????????????????? | | ?????????????????????????????????????????????????? | | ?????????????????????????????????????????????????? | | ???????????????????????????#############?????????? | | ???????????????????????????# ??????????? | | ???????????????????????????# ???????????? | | ???????????????????????????+ ???????????? | | ???????????????????????????# ????????????? | | ???????????????????????????# ?????????????? | | ???????????????????????????# #?????????????? | | ?????????????????#######+### #?????????????? | | ????????????????? #?????????????? | | ???????????????? #?????????????? | | ???????????????? #?????????????? | | ???????????????? #?????????????? | | ???????????????? #?????????????? | | ?????????????????? #### ######+#######???????????? | | ????????????????????????# #???????????? | | ????????????????????????+ #???????????? | | ????????????????????????# """ """ #???????????? | | ????????????????????????# """ """ #???????????? | | ????????????????????????# """ """ #???????????? | | ????????????????????????# #???????????? | | ????????????????????????#@ """ """ #???????????? | | ????????????????????????# """ """ ????????????? | | ????????????????????????# """ """ #???????????? | | ????????????????????????# #???????????? | | ????????????????????????# #???????????? | | ????????????????????????# #???????????? | | ????????????????????????##############???????????? | | ?????????????????????????????????????????????????? | | ?????????????????????????????????????????????????? | | ?????????????????????????????????????????????????? | | ?????????????????????????????????????????????????? | | ?????????????????????????????????????????????????? | | ?????????????????????????o???????????????????????? | | ?????????????????????????????????????????????????? | | ?????????????????????????????????????????????????? | | ?????????????????????????????????????????????????? | | ?????????????????????????????????????????????????? | | ?????????????????????????????????????????????????? | | ?????????????????????????????????????????????????? | | ?????????????????????????????????????????????????? | | ?????????????????????????????????????????????????? | | ?????????????????????????????????????????????????? | | ?????????????????????????????????????????????????? | | ?????????????????????????????????????????????????? | | ?????????????????????????????????????????????????? | +----------------------------------------------------+ Best States ------------- Heat Dissipation 48 Energy Generation 23 Energy Capacity 550 Matter Stores 300 Matter Capacity 300 Sight Range 20 Robot Scan Range 15 Terrain Scan Density 10 Cloak Strength 5 Armor Coverage 225 Evasion (%) 50 Recoil Reduction 2 Offensive Hacking 10 Item Schematics ----------------- Imp. VTOL Module | -8/Materials | Scanalyzed Robot Schematics ------------------ None Fabricated ------------ Nothing Alien Tech Used ----------------- None Achievements -------------- I Spy Safety First Challenges ------------ None Game ------ Seed MyomerTimingDevice Manual? 0 Play Time 01:08:02 Cumulative 22.9 hours Start 2025.03.12 @ 14:56:29 End 2025.03.12 @ 21:50:27 Sessions 7 Manual Loads 0 Difficulty Rogue Special Mode None Game No. 27 Rogue 25 Adventurer 2 Explorer 0 Win Type - Total 0 Types 0/0/0/0/0/0/0/0/0 Lore% 11 Gallery% 22 Achievement% 23 Wizard Run 0 Options --------- Layout 0 ASCII 0 Keyboard 0 Movement Mouse Keybinds 0 Fullscreen 1 Font 18/SmallcapsGlow Map View 76x50 Zoom Use 0% Tactical HUD 1 Map Filters NONE Filters NONE Steam 1 RUN: 66ccbbdd-c062-4034-90cb-94515bad73eb